lending/lending_fUSD_20250508
["ID","MTS","AMOUNT","RATE_DAILY","PERIOD"]
[360328015,1746741911956,150.0,0.000184,2]
[360328016,1746741911987,150.0,0.000188,2]
[360328017,1746741912050,150.0,0.000192,4]
[360328018,1746741912085,150.0,0.00018316,2]
[360328019,1746741912119,150.0,0.00018,2]
[360328020,1746741912165,150.0,0.000185,2]
[360328021,1746741912194,150.0,0.00019,2]
[360328022,1746741912245,150.0,0.000195,4]
[360328023,1746741912425,150.0,0.00018,2]
[360328024,1746741912977,150.0,0.00018,2]
[360328026,1746741916500,150.0,0.00018,2]
[360328027,1746741916560,150.0,0.00019,2]
[360328028,1746741916666,150.0,0.00018,2]
[360328029,1746741922579,150.0,0.00018,2]
[360328030,1746741922667,150.0,0.00018,2]
[360328031,1746741923115,150.0,0.00018667,2]
[360328032,1746741923229,150.0,0.00019333,4]
[360328033,1746741923291,150.0,0.00018,2]
[360328034,1746741923337,150.0,0.00018,2]
[360328035,1746741952090,-150.0,0.00019509,4]
[360328036,1746741952116,-555.0840299,0.00019542,2]
[360328037,1746741998206,1020.98510339,0.00018,2]
[360328040,1746742009746,227.0,0.0002945,30]
[360328041,1746742014261,-466.57391609,0.00019542,2]
[360328042,1746742077825,1170.91,0.00018861,2]
[360328044,1746742078608,1170.91,0.00025934,120]
[360328045,1746742080175,1170.91,0.00028291,120]
[360328046,1746742088109,200.0,0.0003013,120]
[360328047,1746742101093,-214.8736581,0.00019542,2]
[360328048,1746742116459,-141.95839591,0.00019542,2]
[360328049,1746742116484,-150.0,0.00019544,4]
[360328050,1746742116507,-17.12133709,0.00019579,4]
[360328051,1746742130879,-132.87866291,0.00019579,4]
[360328066,1746742203946,753.28633264,0.00030137,120]
[360328068,1746742206911,1973.93,0.0003013,120]
[360328077,1746742231893,-150.0,0.000196,4]
[360328078,1746742231903,-150.0,0.00019614,4]
[360328079,1746742231912,-150.0,0.00019649,4]
[360328080,1746742231922,-150.0,0.00019684,4]
[360328081,1746742231931,-151.0,0.00019698,2]
[360328082,1746742231941,-275.9,0.00019699,2]
[360328083,1746742232005,-2616.56855012,0.00019699,2]
[360328084,1746742232015,-472.0,0.00019699,2]
[360328085,1746742232024,-1200.0,0.00019699,2]
[360328086,1746742232034,-300.0,0.00019699,2]
[360328087,1746742232044,-127.73946388,0.000197,2]
[360328124,1746742237918,-6777.92188598,0.000197,2]
[360328125,1746742237928,-626.98259131,0.0001971,2]
[360328126,1746742237938,-156.33733426,0.0001971,2]
[360328127,1746742237950,-496.82117667,0.0001971,2]
[360328128,1746742237960,-33875.3865951,0.0001971,2]
[360328129,1746742237969,-150.0,0.00019719,4]
[360328130,1746742237979,-150.0,0.00019754,4]
[360328131,1746742237989,-150.0,0.00019789,4]
[360328132,1746742237998,-200.0,0.00019791,2]
[360328133,1746742238008,-200.0,0.00019792,2]
[360328134,1746742238018,-200.0,0.00019792,2]
[360328135,1746742238027,-235.55536685,0.00019811,2]
[360328136,1746742238037,-855.43525965,0.00019812,2]
[360328137,1746742238047,-150.0,0.00019825,4]
[360328138,1746742238057,-235.55536685,0.00019841,2]
[360328139,1746742238067,-200.0,0.00019841,2]
[360328140,1746742238077,-234.25395273,0.00019854,2]
[360328141,1746742238087,-200.0,0.00019857,2]
[360328142,1746742238096,-150.0,0.0001986,4]
[360328143,1746742238106,-200.0,0.00019861,2]
[360328144,1746742238117,-850.0,0.00019861,2]
[360328145,1746742238127,-200.0,0.00019863,2]
[360328146,1746742238136,-234.25395273,0.00019866,2]
[360328147,1746742238146,-855.43525965,0.0001987,2]
[360328148,1746742238155,-500.0,0.00019873,2]
[360328149,1746742238165,-500.0,0.00019873,2]
[360328150,1746742238175,-223.81897589,0.00019873,2]
[360328151,1746742238184,-500.0,0.00019873,2]
[360328152,1746742238193,-12500.0,0.00019874,2]
[360328153,1746742238204,-12500.0,0.00019874,2]
[360328154,1746742238214,-595.35365603,0.00019875,2]
[360328155,1746742238223,-200.0,0.00019875,2]
[360328156,1746742238233,-200.0,0.00019876,2]
[360328157,1746742238243,-200.0,0.00019881,2]
[360328158,1746742238252,-12500.0,0.00019882,2]
[360328159,1746742238262,-5800.0,0.00019883,2]
[360328160,1746742238271,-200.0,0.00019887,2]
[360328161,1746742238281,-595.35365603,0.00019891,2]
[360328162,1746742238290,-12500.0,0.00019891,2]
[360328163,1746742238300,-5800.0,0.00019892,2]
[360328164,1746742238310,-200.0,0.00019895,2]
[360328165,1746742238319,-150.0,0.00019895,4]
[360328166,1746742238329,-200.0,0.00019896,2]
[360328167,1746742238338,-227.61472512,0.00019899,2]
[360328169,1746742238352,-227.61472509,0.00019899,2]
[360328171,1746742238361,-227.61472509,0.00019899,2]
[360328173,1746742238370,-200.0,0.00019899,2]
[360328174,1746742238379,-227.61472509,0.00019899,2]
[360328176,1746742238390,-227.61472509,0.000199,2]
[360328178,1746742238399,-227.61472509,0.000199,2]
[360328180,1746742238408,-227.61472509,0.000199,2]
[360328181,1746742238417,-11994.4364,0.000199,2]
[360328183,1746742238428,-5528.4166,0.000199,2]
[360328185,1746742238438,-2459.8101,0.000199,2]
[360328187,1746742238447,-791.1761,0.000199,2]
[360328188,1746742238457,-12500.0,0.000199,2]
[360328190,1746742238467,-5797.28668566,0.000199,2]
[360328192,1746742238479,-2.71331434,0.000199,2]
[360328195,1746742238488,-627.30060297,0.000199,2]
[360328197,1746742238500,-617.27713344,0.000199,2]
[360328199,1746742238508,-453.6529,0.000199,2]
[360328200,1746742238517,-321.75477389,0.000199,2]
[360328202,1746742238527,-1331.17987279,0.000199,2]
[360328204,1746742238536,-168.42863539,0.000199,2]
[360328206,1746742238545,-2693.52013309,0.000199,2]
[360328210,1746742238578,-2678.03800005,0.000199,2]
[360328212,1746742238588,-1921.6,0.000199,2]
[360328213,1746742238599,-689.17805,0.000199,2]
[360328226,1746742240789,-308.43,0.000199,2]
[360328227,1746742240801,-10114.00171392,0.000199,2]
[360328228,1746742240811,-27622.6433323,0.000199,2]
[360328229,1746742240821,-1172.04871844,0.000199,2]
[360328230,1746742240832,-847.51685104,0.000199,2]
[360328231,1746742240844,-1411.82586531,0.000199,2]
[360328232,1746742240858,-227.61472509,0.000199,2]
[360328233,1746742240870,-449.84388974,0.000199,2]
[360328234,1746742240883,-496.82117667,0.000199,2]
[360328235,1746742240893,-626.98259131,0.000199,2]
[360328236,1746742240904,-546.84828793,0.000199,2]
[360328237,1746742240916,-150.0,0.0001993,4]
[360328238,1746742240928,-150.0,0.00019965,4]
[360328239,1746742240940,-500.0,0.00019973,2]
[360328240,1746742240951,-500.0,0.00019973,2]
[360328241,1746742240964,-500.0,0.00019973,2]
[360328242,1746742240975,-815.0,0.00019973,2]
[360328243,1746742240988,-503.85916262,0.00019973,2]
[360328244,1746742240999,-500.89911374,0.00019973,2]
[360328245,1746742241010,-500.0,0.00019973,2]
[360328246,1746742241021,-500.0,0.00019973,2]
[360328247,1746742241032,-500.0,0.00019973,2]
[360328248,1746742241042,-500.0,0.00019973,2]
[360328249,1746742241054,-500.0,0.00019973,2]
[360328250,1746742241067,-500.0,0.00019973,2]
[360328251,1746742241078,-500.0,0.00019973,2]
[360328252,1746742241091,-500.0,0.00019973,2]
[360328253,1746742241103,-500.0,0.00019973,2]
[360328254,1746742241116,-231.96540897,0.0001999,2]
[360328255,1746742241127,-231.96540897,0.0001999,2]
[360328256,1746742241140,-231.96540897,0.0001999,2]
[360328257,1746742241153,-300.0,0.00019999,2]
[360328258,1746742241166,-500.0,0.00019999,2]
[360328259,1746742241178,-300.0,0.00019999,2]
[360328260,1746742241190,-500.0,0.00019999,2]
[360328261,1746742241201,-150.0,0.00019999,2]
[360328262,1746742241215,-2002.02772117,0.00019999,2]
[360328263,1746742241227,-24639.42216952,0.00019999,3]
[360328264,1746742241239,-150.0,0.00019999,2]
[360328265,1746742241251,-150.0,0.00019999,2]
[360328266,1746742241263,-171.23498485,0.00019999,2]
[360328267,1746742241275,-175.97605604,0.00019999,2]
[360328268,1746742241286,-188.24824518,0.00019999,2]
[360328269,1746742241297,-493.9334945,0.00019999,2]
[360328270,1746742241309,-196.65420282,0.00019999,2]
[360328271,1746742241321,-342.50521571,0.00019999,2]
[360328272,1746742241333,-500.0,0.00019999,2]
[360328273,1746742241344,-500.0,0.00019999,2]
[360328274,1746742241359,-500.0,0.00019999,2]
[360328275,1746742241370,-500.0,0.00019999,2]
[360328276,1746742241380,-500.0,0.00019999,2]
[360328277,1746742241391,-500.0,0.00019999,2]
[360328278,1746742241400,-500.0,0.00019999,2]
[360328279,1746742241411,-500.0,0.00019999,2]
[360328280,1746742241422,-500.0,0.00019999,2]
[360328281,1746742241436,-500.0,0.00019999,2]
[360328282,1746742241450,-500.0,0.00019999,2]
[360328283,1746742241460,-500.0,0.00019999,2]
[360328284,1746742241470,-500.0,0.00019999,2]
[360328285,1746742241480,-500.0,0.00019999,2]
[360328286,1746742241491,-500.0,0.00019999,2]
[360328287,1746742241501,-500.0,0.00019999,2]
[360328288,1746742241512,-500.0,0.00019999,2]
[360328289,1746742241524,-500.0,0.00019999,2]
[360328290,1746742241534,-500.0,0.00019999,2]
[360328291,1746742241544,-500.0,0.00019999,2]
[360328292,1746742241555,-500.0,0.00019999,2]
[360328293,1746742241565,-500.0,0.00019999,2]
[360328294,1746742241575,-500.0,0.00019999,2]
[360328295,1746742241586,-500.0,0.00019999,2]
[360328296,1746742241597,-500.0,0.00019999,2]
[360328297,1746742241607,-500.0,0.00019999,2]
[360328298,1746742241629,-500.0,0.00019999,2]
[360328299,1746742241639,-500.0,0.00019999,2]
[360328300,1746742241651,-500.0,0.00019999,2]
[360328301,1746742241662,-500.0,0.00019999,2]
[360328302,1746742241674,-500.0,0.00019999,2]
[360328303,1746742241684,-500.0,0.00019999,2]
[360328304,1746742241697,-500.0,0.00019999,2]
[360328305,1746742241708,-500.0,0.00019999,2]
[360328306,1746742241719,-500.0,0.00019999,2]
[360328307,1746742241730,-500.0,0.00019999,2]
[360328308,1746742241743,-500.0,0.00019999,2]
[360328309,1746742241755,-500.0,0.00019999,2]
[360328310,1746742241767,-500.0,0.00019999,2]
[360328311,1746742241777,-500.0,0.00019999,2]
[360328312,1746742241788,-500.0,0.00019999,2]
[360328313,1746742241800,-500.0,0.00019999,2]
[360328314,1746742241811,-432.74265147,0.00019999,2]
[360328315,1746742241822,-497.21910351,0.00019999,2]
[360328316,1746742241832,-500.0,0.00019999,2]
[360328317,1746742241843,-500.0,0.00019999,2]
[360328318,1746742241854,-500.0,0.00019999,2]
[360328319,1746742241865,-500.0,0.00019999,2]
[360328320,1746742241876,-500.0,0.00019999,2]
[360328321,1746742241887,-500.0,0.00019999,2]
[360328322,1746742241898,-500.0,0.00019999,2]
[360328323,1746742241909,-500.0,0.00019999,2]
[360328324,1746742241920,-500.0,0.00019999,2]
[360328325,1746742241931,-500.0,0.00019999,2]
[360328326,1746742241943,-500.0,0.00019999,2]
[360328327,1746742241954,-500.0,0.00019999,2]
[360328328,1746742241965,-500.0,0.00019999,2]
[360328329,1746742241976,-500.0,0.00019999,2]
[360328330,1746742241987,-500.0,0.00019999,2]
[360328331,1746742241998,-500.0,0.00019999,2]
[360328332,1746742242009,-500.0,0.00019999,2]
[360328333,1746742242019,-500.0,0.00019999,2]
[360328334,1746742242030,-500.0,0.00019999,2]
[360328335,1746742242041,-500.0,0.00019999,2]
[360328336,1746742242054,-500.0,0.00019999,2]
[360328337,1746742242065,-500.0,0.00019999,2]
[360328338,1746742242076,-500.0,0.00019999,2]
[360328339,1746742242086,-500.0,0.00019999,2]
[360328340,1746742242097,-500.0,0.00019999,2]
[360328341,1746742242109,-500.0,0.00019999,2]
[360328342,1746742242119,-500.0,0.00019999,2]
[360328343,1746742242130,-500.0,0.00019999,2]
[360328344,1746742242141,-500.0,0.00019999,2]
[360328345,1746742242151,-500.0,0.00019999,2]
[360328346,1746742242162,-500.0,0.00019999,2]
[360328347,1746742242173,-500.0,0.00019999,2]
[360328348,1746742242184,-500.0,0.00019999,2]
[360328349,1746742242195,-500.0,0.00019999,2]
[360328350,1746742242206,-500.0,0.00019999,2]
[360328351,1746742242217,-500.0,0.00019999,2]
[360328352,1746742242228,-500.0,0.00019999,2]
[360328353,1746742242239,-500.0,0.00019999,2]
[360328354,1746742242249,-500.0,0.00019999,2]
[360328355,1746742242261,-500.0,0.00019999,2]
[360328356,1746742242271,-500.0,0.00019999,2]
[360328357,1746742242283,-500.0,0.00019999,2]
[360328358,1746742242294,-500.0,0.00019999,2]
[360328359,1746742242305,-500.0,0.00019999,2]
[360328360,1746742242317,-500.0,0.00019999,2]
[360328361,1746742242327,-500.0,0.00019999,2]
[360328362,1746742242338,-500.0,0.00019999,2]
[360328363,1746742242350,-500.0,0.00019999,2]
[360328364,1746742242362,-500.0,0.00019999,2]
[360328365,1746742242373,-500.0,0.00019999,2]
[360328366,1746742242384,-591.5914933,0.00019999,2]
[360328367,1746742242395,-500.0,0.00019999,2]
[360328368,1746742242406,-500.0,0.00019999,2]
[360328369,1746742242417,-500.0,0.00019999,2]
[360328370,1746742242429,-500.0,0.00019999,2]
[360328371,1746742242440,-500.0,0.00019999,2]
[360328372,1746742242452,-500.0,0.00019999,2]
[360328373,1746742242463,-500.0,0.00019999,2]
[360328374,1746742242475,-500.0,0.00019999,2]
[360328375,1746742242486,-500.0,0.00019999,2]
[360328376,1746742242497,-500.0,0.00019999,2]
[360328377,1746742242508,-500.0,0.00019999,2]
[360328378,1746742242519,-171.07670658,0.00019999,2]
[360328379,1746742242530,-500.0,0.00019999,2]
[360328380,1746742242542,-500.0,0.00019999,2]
[360328381,1746742242553,-500.0,0.00019999,2]
[360328382,1746742242565,-500.0,0.00019999,2]
[360328383,1746742242576,-500.0,0.00019999,2]
[360328384,1746742242587,-500.0,0.00019999,2]
[360328385,1746742242599,-500.0,0.00019999,2]
[360328386,1746742242609,-500.0,0.00019999,2]
[360328387,1746742242620,-500.0,0.00019999,2]
[360328388,1746742242631,-500.0,0.00019999,2]
[360328389,1746742242642,-500.0,0.00019999,2]
[360328391,1746742242653,-500.0,0.00019999,2]
[360328392,1746742242664,-500.0,0.00019999,2]
[360328393,1746742242675,-500.0,0.00019999,2]
[360328394,1746742242686,-500.0,0.00019999,2]
[360328395,1746742242697,-500.0,0.00019999,2]
[360328396,1746742242710,-500.0,0.00019999,2]
[360328397,1746742242722,-500.0,0.00019999,2]
[360328398,1746742242733,-500.0,0.00019999,2]
[360328399,1746742242745,-500.0,0.00019999,2]
[360328400,1746742242757,-500.0,0.00019999,2]
[360328401,1746742242768,-500.0,0.00019999,2]
[360328402,1746742242780,-500.0,0.00019999,2]
[360328403,1746742242791,-500.0,0.00019999,2]
[360328404,1746742242804,-500.0,0.00019999,2]
[360328405,1746742242816,-462.51162158,0.00019999,2]
[360328406,1746742242827,-500.0,0.00019999,2]
[360328407,1746742242839,-500.0,0.00019999,2]
[360328408,1746742242850,-500.0,0.00019999,2]
[360328409,1746742242862,-500.0,0.00019999,2]
[360328410,1746742242874,-500.0,0.00019999,2]
[360328411,1746742242886,-500.0,0.00019999,2]
[360328412,1746742242897,-500.0,0.00019999,2]
[360328413,1746742242908,-500.0,0.00019999,2]
[360328414,1746742242919,-500.0,0.00019999,2]
[360328415,1746742242930,-500.0,0.00019999,2]
[360328416,1746742242941,-500.0,0.00019999,2]
[360328417,1746742242956,-500.0,0.00019999,2]
[360328418,1746742242967,-500.0,0.00019999,2]
[360328419,1746742242979,-500.0,0.00019999,2]
[360328420,1746742242990,-500.0,0.00019999,2]
[360328422,1746742243002,-500.0,0.00019999,2]
[360328423,1746742243014,-500.0,0.00019999,2]
[360328424,1746742243026,-500.0,0.00019999,2]
[360328425,1746742243037,-631.64787961,0.00019999,2]
[360328426,1746742243049,-500.0,0.00019999,2]
[360328427,1746742243059,-500.0,0.00019999,2]
[360328428,1746742243070,-500.0,0.00019999,2]
[360328429,1746742243081,-500.0,0.00019999,2]
[360328430,1746742243092,-500.0,0.00019999,2]
[360328431,1746742243103,-500.0,0.00019999,2]
[360328432,1746742243115,-500.0,0.00019999,2]
[360328433,1746742243127,-500.0,0.00019999,2]
[360328434,1746742243138,-500.0,0.00019999,2]
[360328435,1746742243149,-500.0,0.00019999,2]
[360328436,1746742243160,-500.0,0.00019999,2]
[360328437,1746742243172,-500.0,0.00019999,2]
[360328438,1746742243183,-500.0,0.00019999,2]
[360328439,1746742243195,-500.0,0.00019999,2]
[360328440,1746742243211,-500.0,0.00019999,2]
[360328441,1746742243222,-500.0,0.00019999,2]
[360328442,1746742243233,-500.0,0.00019999,2]
[360328443,1746742243244,-500.0,0.00019999,2]
[360328444,1746742243255,-500.0,0.00019999,2]
[360328445,1746742243266,-500.0,0.00019999,2]
[360328446,1746742243277,-215.06162211,0.0002,4]
[360328447,1746742243287,-265.30992113,0.0002,4]
[360328448,1746742243298,-1300474.42349966,0.0002,2]
[360328471,1746742244861,-314.75454105,0.0002,2]
[360328472,1746742245145,-51.84154626,0.0002,2]
[360328475,1746742246019,-4409.74608926,0.0002,2]
[360328476,1746742246031,-15623.52086388,0.0002,2]
[360328477,1746742246043,-8839.82474107,0.0002,2]
[360328478,1746742246059,-3219.85439505,0.0002,2]
[360328479,1746742246123,-6154.764,0.0002,2]
[360328480,1746742246223,-470.0,0.0002,2]
[360328482,1746742327148,500.0,0.0003013,120]
[360328483,1746742333941,500.0,0.0003013,120]
[360328486,1746742343544,500.0,0.0003013,120]
[360328487,1746742354382,500.0,0.0003013,120]
[360328492,1746742373175,500.0,0.0003013,120]
[360328499,1746742406066,-246.11,0.00019548,2]
[360328537,1746742673143,1035.50121157,0.00019999,5]
[360328538,1746742684728,150.0,0.00019246,7]
[360328551,1746742779007,1000.0,0.00019307,2]
[360328552,1746742789677,2741.46092859,0.00030137,120]
[360328553,1746742818158,353.73,0.00018912,2]
[360328558,1746742930290,2383.81813,0.0003,30]
[360328562,1746743118067,172.72456604,0.00018,2]
[360328563,1746743118142,215.06162211,0.00018,2]
[360328564,1746743118215,265.30992113,0.00018,2]
[360328565,1746743124643,294.95041064,0.00018,2]
[360328566,1746743124695,150.0,0.00018,2]
[360328567,1746743124818,150.0,0.00018,2]
[360328568,1746743128112,430.55745797,0.00023,120]
[360328569,1746743130787,298.34044616,0.00018,2]
[360328570,1746743133867,1333.22824175,0.0002,120]
[360328571,1746743134271,2705.24034595,0.0003013,120]
[360328572,1746743154471,1076.92662201,0.00017006,2]
[360328573,1746743154493,163.71337799,0.00017006,2]
[360328574,1746743154905,1240.64,0.0001927,2]
[360328575,1746743161784,1131.63,0.0001892,2]
[360328576,1746743162497,1131.63,0.00026016,120]
[360328577,1746743162720,1131.63,0.00028381,120]
[360328578,1746743169620,627.96372266,0.0003,120]
[360328581,1746743232362,1144.37724261,0.0003,120]
[360328582,1746743268474,354.76657863,0.00028,120]
[360328583,1746743269993,1223.27569056,0.0003,120]
[360328585,1746743275696,2020.0,0.0002,120]
[360328586,1746743279864,417.01,0.00018903,2]
[360328589,1746743288631,2008.08,0.0003,120]
[360328594,1746743315060,299.77939942,0.00028799,120]
[360328596,1746743317486,1998.55532915,0.0003,120]
[360328598,1746743317783,468.34077871,0.0003,120]
[360328599,1746743318463,993.36475659,0.0003013,120]
[360328600,1746743320044,1837.57087411,0.0003,120]
[360328601,1746743320621,3176.14612758,0.0003,120]
[360328605,1746743324541,508.6170308,0.0001,120]
[360328609,1746743327189,863.1494339,0.0002,120]
[360328611,1746743359972,250.0,0.00017,2]
[360328612,1746743361030,300.0,0.00019,2]
[360328613,1746743365364,6497.00662201,0.00018898,2]
[360328614,1746743365387,1555.47337799,0.00018898,2]
[360328628,1746743383637,166.54,0.00019465,2]
[360328636,1746743429378,223.7,0.00030137,120]
[360328640,1746743432044,-1922.50854933,0.0001965,2]
[360328641,1746743432053,-151.0,0.000197,2]
[360328642,1746743432063,-3049.32802282,0.000197,2]
[360328643,1746743432072,-1922.50854932,0.00019717,2]
[360328644,1746743432081,-300.0,0.00019748,2]
[360328646,1746743432091,-1200.0,0.00019749,2]
[360328648,1746743432100,-300.0,0.00019749,2]
[360328650,1746743432110,-4835.290012,0.0001975,2]
[360328651,1746743432119,-1533.02446284,0.00019793,2]
[360328653,1746743432128,-200.0,0.00019794,2]
[360328655,1746743432138,-1442.9130897,0.00019794,2]
[360328656,1746743432147,-727.1486,0.00019799,2]
[360328657,1746743432157,-200.0,0.00019805,2]
[360328658,1746743432169,-200.0,0.00019813,2]
[360328659,1746743432179,-1533.02446284,0.00019818,2]
[360328660,1746743432189,-1442.9130897,0.00019854,2]
[360328661,1746743432199,-523.49441441,0.00019872,2]
[360328662,1746743432208,-517.45871083,0.00019873,2]
[360328663,1746743432218,-164.18743977,0.00019873,2]
[360328664,1746743432227,-500.0,0.00019873,2]
[360328665,1746743432237,-500.0,0.00019873,2]
[360328666,1746743432246,-500.0,0.00019873,2]
[360328667,1746743432256,-500.0,0.00019873,2]
[360328668,1746743432265,-500.0,0.00019873,2]
[360328669,1746743432275,-3112.909,0.00019873,2]
[360328670,1746743432284,-188.245,0.00019873,2]
[360328671,1746743432293,-151.0,0.00019878,2]
[360328672,1746743432302,-151.0,0.00019878,2]
[360328673,1746743432311,-850.0,0.00019889,2]
[360328674,1746743432320,-17969.25659644,0.0001989,2]
[360328675,1746743432332,-1422.2533176,0.0001989,2]
[360328676,1746743432343,-443.07910095,0.0001989,2]
[360328677,1746743433742,-1168.84483464,0.0001989,2]
[360328690,1746743438692,-475.38,0.0001989,2]
[360328693,1746743438723,-4469.34245051,0.0001989,2]
[360328694,1746743438748,-12557.70147793,0.0001989,2]
[360328695,1746743438760,-6700.85940238,0.0001989,2]
[360328696,1746743438769,-200.0,0.00019892,2]
[360328697,1746743438779,-523.49441441,0.00019897,2]
[360328698,1746743438788,-4920.63461658,0.00019898,2]
[360328699,1746743438797,-4920.63461653,0.00019898,2]
[360328700,1746743438806,-1126.28,0.00019898,2]
[360328701,1746743438816,-1000.0,0.00019898,2]
[360328702,1746743438825,-4920.63461653,0.00019898,2]
[360328703,1746743438834,-4920.63461653,0.00019899,2]
[360328704,1746743438843,-4920.63461653,0.00019899,2]
[360328705,1746743438853,-4920.63461653,0.00019899,2]
[360328706,1746743438862,-4920.63461653,0.00019899,2]
[360328707,1746743438872,-2500.0,0.00019899,2]
[360328708,1746743438882,-4920.63461653,0.000199,2]
[360328709,1746743438891,-1000.0,0.000199,2]
[360328710,1746743438900,-4920.63461653,0.000199,2]
[360328711,1746743438909,-3438.65952051,0.000199,2]
[360328712,1746743438920,-2719.16353296,0.000199,2]
[360328713,1746743438930,-4920.63461653,0.000199,2]
[360328714,1746743438939,-1376.19448545,0.000199,2]
[360328715,1746743438948,-460.0766169,0.000199,3]
[360328716,1746743438958,-36623.76307071,0.000199,2]
[360328717,1746743438967,-636.60262983,0.00019952,2]
[360328718,1746743438976,-203.0,0.00019973,2]
[360328719,1746743438986,-500.0,0.00019973,2]
[360328720,1746743438995,-523.45807803,0.00019973,2]
[360328721,1746743439005,-500.0,0.00019973,2]
[360328722,1746743439014,-500.0,0.00019973,2]
[360328723,1746743439024,-815.0,0.00019973,2]
[360328724,1746743439033,-501.53277927,0.00019973,2]
[360328725,1746743439043,-500.0,0.00019973,2]
[360328726,1746743439053,-500.0,0.00019973,2]
[360328727,1746743439063,-806.09,0.00019988,3]
[360328728,1746743439072,-25258.41209925,0.00019997,3]
[360328729,1746743439082,-500.0,0.00019998,2]
[360328730,1746743439091,-150.0,0.00019998,2]
[360328731,1746743439100,-500.0,0.00019998,2]
[360328732,1746743439110,-150.0,0.00019998,2]
[360328733,1746743439119,-500.0,0.00019999,2]
[360328735,1746743439128,-500.0,0.00019999,2]
[360328737,1746743439138,-500.0,0.00019999,2]
[360328739,1746743439147,-300.0,0.00019999,2]
[360328741,1746743439157,-500.0,0.00019999,2]
[360328742,1746743439168,-150.0,0.00019999,2]
[360328743,1746743439178,-270.26,0.00019999,2]
[360328744,1746743439186,-150.0,0.00019999,2]
[360328745,1746743439196,-150.0,0.00019999,2]
[360328746,1746743439205,-171.23498485,0.00019999,2]
[360328747,1746743439214,-196.65420282,0.00019999,2]
[360328748,1746743439223,-342.50521571,0.00019999,2]
[360328749,1746743439233,-497.21910351,0.00019999,2]
[360328750,1746743439242,-171.07670658,0.00019999,2]
[360328751,1746743439251,-175.97605604,0.00019999,2]
[360328752,1746743439261,-432.74265147,0.00019999,2]
[360328753,1746743439270,-188.24824518,0.00019999,2]
[360328754,1746743439279,-500.0,0.00019999,2]
[360328755,1746743439289,-500.0,0.00019999,2]
[360328756,1746743439299,-500.0,0.00019999,2]
[360328757,1746743439309,-209.04021549,0.00019999,2]
[360328758,1746743439318,-500.0,0.00019999,2]
[360328759,1746743439328,-500.0,0.00019999,2]
[360328760,1746743439337,-246.1509905,0.00019999,2]
[360328761,1746743439346,-500.0,0.00019999,2]
[360328762,1746743439356,-500.0,0.00019999,2]
[360328763,1746743439366,-500.0,0.00019999,2]
[360328764,1746743439375,-500.0,0.00019999,2]
[360328765,1746743439385,-500.0,0.00019999,2]
[360328766,1746743439394,-500.0,0.00019999,2]
[360328767,1746743439404,-500.0,0.00019999,2]
[360328768,1746743439413,-500.0,0.00019999,2]
[360328769,1746743439424,-500.0,0.00019999,2]
[360328770,1746743439434,-500.0,0.00019999,2]